fUSD/lending_fUSD_20250414
["ID","MTS","AMOUNT","RATE_DAILY","PERIOD"]
[358003588,1744651071750,-43.89385248,0.00017888,2]
[358003589,1744651071758,-435.68171857,0.00017888,2]
[358003590,1744651071766,-20.42442895,0.00017888,2]
[358003591,1744651071773,-415.25728962,0.00017888,2]
[358003592,1744651071784,-84.74271038,0.00017888,2]
[358003593,1744651071791,-350.93900819,0.00017888,2]
[358003594,1744651071804,-435.68171857,0.00017888,2]
[358003595,1744651071815,-435.68171857,0.00017888,2]
[358003596,1744651071825,-435.68171857,0.00017888,2]
[358003597,1744651071841,-435.68171857,0.00017888,2]
[358003598,1744651071852,-435.68171857,0.00017888,2]
[358003599,1744651071871,-435.68171857,0.00017888,2]
[358003600,1744651071911,-435.68171857,0.00017888,2]
[358003601,1744651071922,-435.68171857,0.00017888,2]
[358003602,1744651071937,-435.68171857,0.00017888,2]
[358003603,1744651071948,-435.68171857,0.00017888,2]
[358003604,1744651071959,-292.24380611,0.00017888,2]
[358003605,1744651071968,-143.43791246,0.00017888,2]
[358003606,1744651071979,-356.56208754,0.00017888,2]
[358003607,1744651071988,-79.11963103,0.00017888,2]
[358003608,1744651071999,-420.88036897,0.00017888,2]
[358003609,1744651072009,-14.8013496,0.00017888,2]
[358003610,1744651072020,-435.68171857,0.00017888,2]
[358003611,1744651072039,-49.51693183,0.00017888,2]
[358003612,1744651072235,-386.16478674,0.00017888,2]
[358003613,1744651072287,-113.83521326,0.00017888,2]
[358003614,1744651072296,-151.0,0.00017888,2]
[358003615,1744651072307,-151.0,0.00017888,2]
[358003616,1744651072316,-19.84650531,0.00017888,2]
[358003617,1744651072386,-150.94196969,0.00017888,2]
[358003618,1744651072396,-284.73974888,0.00017888,2]
[358003619,1744651072408,-215.26025112,0.00017888,2]
[358003620,1744651072417,-220.42146745,0.00017888,2]
[358003621,1744651072429,-279.57853255,0.00017888,2]
[358003622,1744651072438,-156.10318602,0.00017888,2]
[358003623,1744651072449,-343.89681398,0.00017888,2]
[358003624,1744651072459,-91.78490459,0.00017888,2]
[358003625,1744651072474,-408.21509541,0.00017888,2]
[358003626,1744651072483,-27.46662316,0.00017888,2]
[358003627,1744651072494,-435.68171857,0.00017888,2]
[358003628,1744651072506,-36.85165827,0.00017888,2]
[358003629,1744651072516,-398.8300603,0.00017888,2]
[358003630,1744651072529,-101.1699397,0.00017888,2]
[358003631,1744651072539,-334.51177887,0.00017888,2]
[358003632,1744651072551,-165.48822113,0.00017888,2]
[358003633,1744651072560,-270.19349744,0.00017888,2]
[358003634,1744651072575,-229.80650256,0.00017888,2]
[358003635,1744651072584,-205.87521601,0.00017888,2]
[358003636,1744651072600,-294.12478399,0.00017888,2]
[358003637,1744651072609,-141.55693458,0.00017888,2]
[358003638,1744651072621,-392.46470136,0.00017888,2]
[358003639,1744651072630,-43.21701721,0.00017888,2]
[358003640,1744651072645,-435.68171857,0.00017888,2]
[358003641,1744651072659,-21.10126422,0.00017888,2]
[358003642,1744651072668,-414.58045435,0.00017888,2]
[358003643,1744651072679,-85.41954565,0.00017888,2]
[358003644,1744651072688,-350.26217292,0.00017888,2]
[358003645,1744651072704,-149.73782708,0.00017888,2]
[358003646,1744651072713,-285.94389149,0.00017888,2]
[358003647,1744651072724,-214.05610851,0.00017888,2]
[358003648,1744651072733,-221.62561006,0.00017888,2]
[358003649,1744651072744,-278.37438994,0.00017888,2]
[358003650,1744651072754,-157.30732863,0.00017888,2]
[358003651,1744651072765,-342.69267137,0.00017888,2]
[358003652,1744651072775,-92.9890472,0.00017888,2]
[358003653,1744651072786,-407.0109528,0.00017888,2]
[358003654,1744651072795,-28.67076577,0.00017888,2]
[358003655,1744651072810,-435.68171857,0.00017888,2]
[358003656,1744651072844,-35.64751566,0.00017888,2]
[358003657,1744651072856,-400.03420291,0.00017888,2]
[358003658,1744651072873,-99.96579709,0.00017888,2]
[358003659,1744651072883,-249.78650629,0.00017888,2]
[358003660,1744651072893,-85.92941519,0.00017888,2]
[358003661,1744651072906,-435.68171857,0.00017888,2]
[358003662,1744651072918,-104.52276315,0.00017888,2]
[358003663,1744651072929,-331.15895542,0.00017888,2]
[358003664,1744651072941,-168.84104458,0.00017888,2]
[358003665,1744651072951,-222.06473727,0.00017888,2]
[358003666,1744651072960,-44.77593672,0.00017888,2]
[358003667,1744651072976,-435.68171857,0.00017888,2]
[358003668,1744651072988,-19.54234471,0.00017888,2]
[358003669,1744651072998,-416.13937386,0.00017888,2]
[358003670,1744651073021,-83.86062614,0.00017888,2]
[358003671,1744651073030,-351.82109243,0.00017888,2]
[358003672,1744651073043,-69.91576443,0.00017888,2]
[358003673,1744651073053,-365.76595414,0.00017888,2]
[358003674,1744651073064,-134.23404586,0.00017888,2]
[358003675,1744651073074,-301.44767271,0.00017888,2]
[358003676,1744651073090,-198.55232729,0.00017888,2]
[358003677,1744651073099,-237.12939128,0.00017888,2]
[358003678,1744651073114,-262.87060872,0.00017888,2]
[358003679,1744651073123,-172.81110985,0.00017888,2]
[358003680,1744651073135,-404.50698732,0.00017888,2]
[358003681,1744651073145,-31.17473125,0.00017888,2]
[358003682,1744651073157,-435.68171857,0.00017888,2]
[358003683,1744651073173,-33.14355018,0.00017888,2]
[358003684,1744651073183,-402.53816839,0.00017888,2]
[358003685,1744651073200,-97.46183161,0.00017888,2]
[358003686,1744651073211,-151.0,0.00017888,2]
[358003687,1744651073220,-187.21988696,0.00017888,2]
[358003688,1744651073232,-312.78011304,0.00017888,2]
[358003689,1744651073242,-122.90160553,0.00017888,2]
[358003690,1744651073253,-377.09839447,0.00017888,2]
[358003691,1744651073263,-58.5833241,0.00017888,2]
[358003692,1744651073275,-435.68171857,0.00017888,2]
[358003693,1744651073291,-5.73495733,0.00017888,2]
[358003694,1744651073301,-429.94676124,0.00017888,2]
[358003695,1744651073346,-70.05323876,0.00017888,2]
[358003696,1744651073355,-365.62847981,0.00017888,2]
[358003697,1744651073367,-140.12152019,0.00017888,2]
[358003698,1744651073376,-295.56019838,0.00017888,2]
[358003699,1744651073396,-210.18980162,0.00017888,2]
[358003700,1744651073408,-225.49191695,0.00017888,2]
[358003701,1744651073420,-245.37396004,0.00017888,2]
[358003702,1744651073429,-190.30775853,0.00017888,2]
[358003703,1744651073441,-309.69224147,0.00017888,2]
[358003704,1744651073451,-125.9894771,0.00017888,2]
[358003705,1744651073467,-435.68171857,0.00017888,2]
[358003706,1744651073478,-7.09171793,0.00017888,2]
[358003707,1744651073489,-428.59000064,0.00017888,2]
[358003708,1744651073505,-97.96329079,0.00017888,2]
[358003709,1744651073515,-337.71842778,0.00017888,2]
[358003710,1744651073526,-162.28157222,0.00017888,2]
[358003711,1744651073534,-273.40014635,0.00017888,2]
[358003712,1744651073553,-226.59985365,0.00017888,2]
[358003713,1744651073562,-209.08186492,0.00017888,2]
[358003714,1744651073574,-290.91813508,0.00017888,2]
[358003715,1744651073583,-144.76358349,0.00017888,2]
[358003716,1744651073596,-369.13087133,0.00017888,2]
[358003717,1744651073606,-66.55084724,0.00017888,2]
[358003718,1744651073618,-84.57169576,0.00017888,2]
[358003719,1744651073627,-351.11002281,0.00017888,2]
[358003720,1744651073643,-148.88997719,0.00017888,2]
[358003721,1744651073655,-286.79174138,0.00017888,2]
[358003722,1744651073710,-213.20825862,0.00017888,2]
[358003723,1744651073719,-222.47345995,0.00017888,2]
[358003724,1744651073761,-277.52654005,0.00017888,2]
[358003725,1744651073772,-158.15517852,0.00017888,2]
[358003726,1744651073784,-23.53545916,0.00017888,2]
[358003727,1744651073793,-412.14625941,0.00017888,2]
[358003728,1744651073812,-87.85374059,0.00017888,2]
[358003729,1744651073822,-151.0,0.00017888,2]
[358003730,1744651073831,-151.0,0.00017888,2]
[358003731,1744651073840,-45.82797798,0.00017888,2]
[358003732,1744651073854,-435.68171857,0.00017888,2]
[358003733,1744651073868,-18.49030345,0.00017888,2]
[358003734,1744651073878,-151.0,0.00017888,2]
[358003735,1744651073887,-177.329718,0.00017888,2]
[358003736,1744651073897,-88.86169712,0.00017888,2]
[358003737,1744651073913,-411.13830288,0.00017888,2]
[358003738,1744651073922,-24.54341569,0.00017888,2]
[358003739,1744651073934,-435.68171857,0.00017888,2]
[358003740,1744651073945,-39.77486574,0.00017888,2]
[358003741,1744651073955,-358.603611,0.00017888,2]
[358003742,1744651073964,-37.30324183,0.00017888,2]
[358003743,1744651073975,-321.30036917,0.00017888,2]
[358003744,1744651073984,-114.3813494,0.00017888,2]
[358003745,1744651073996,-244.2222616,0.00017888,2]
[358003746,1744651074005,-191.45945697,0.00017888,2]
[358003747,1744651074016,-167.14415403,0.00017888,2]
[358003748,1744651074025,-268.53756454,0.00017888,2]
[358003749,1744651074038,-90.06604646,0.00017888,2]
[358003750,1744651074047,-345.61567211,0.00017888,2]
[358003751,1744651074058,-12.98793889,0.00017888,2]
[358003752,1744651074067,-422.69377968,0.00017888,2]
[358003753,1744651074079,-77.30622032,0.00017888,2]
[358003754,1744651074089,-358.37549825,0.00017888,2]
[358003755,1744651074100,-141.62450175,0.00017888,2]
[358003756,1744651074110,-151.0,0.00017888,2]
[358003757,1744651074120,-143.05721682,0.00017888,2]
[358003758,1744651074131,-7.94278318,0.00017888,2]
[358003759,1744651074140,-151.0,0.00017888,2]
[358003760,1744651074154,-156.011252,0.00017888,2]
[358003761,1744651074168,-120.72768339,0.00017888,2]
[358003762,1744651074180,-379.27231661,0.00017888,2]
[358003763,1744651074189,-56.40940196,0.00017888,2]
[358003764,1744651074201,-435.68171857,0.00017888,2]
[358003765,1744651074219,-7.90887947,0.00017888,2]
[358003766,1744651074229,-427.7728391,0.00017888,2]
[358003767,1744651074244,-182.1071609,0.00017888,2]
[358003768,1744651074254,-253.57455767,0.00017888,2]
[358003769,1744651074265,-246.42544233,0.00017888,2]
[358003770,1744651074275,-151.0,0.00017888,2]
[358003771,1744651074284,-38.25627624,0.00017888,2]
[358003772,1744651074296,-435.68171857,0.00017888,2]
[358003773,1744651074352,-26.06200519,0.00017888,2]
[358003774,1744651074361,-151.0,0.00017888,2]
[358003775,1744651074370,-151.0,0.00017888,2]
[358003776,1744651074379,-107.61971338,0.00017888,2]
[358003777,1744651074390,-43.38028662,0.00017888,2]
[358003778,1744651074399,-392.30143195,0.00017888,2]
[358003779,1744651074412,-107.69856805,0.00017888,2]
[358003780,1744651074422,-327.98315052,0.00017888,2]
[358003781,1744651074433,-172.01684948,0.00017888,2]
[358003782,1744651074442,-263.66486909,0.00017888,2]
[358003783,1744651074454,-236.33513091,0.00017888,2]
[358003784,1744651074464,-199.34658766,0.00017888,2]
[358003785,1744651074495,-338.49605102,0.00017888,2]
[358003786,1744651074504,-97.18566755,0.00017888,2]
[358003787,1744651074516,-53.81433245,0.00017888,2]
[358003788,1744651074525,-275.108127,0.00017888,2]
[358003789,1744651074535,-106.75925912,0.00017888,2]
[358003790,1744651074547,-393.24074088,0.00017888,2]
[358003791,1744651074556,-42.44097769,0.00017888,2]
[358003792,1744651074567,-435.68171857,0.00017888,2]
[358003793,1744651074579,-21.87730374,0.00017888,2]
[358003794,1744651074589,-413.80441483,0.00017888,2]
[358003795,1744651074601,-435.68171857,0.00017888,2]
[358003796,1744651074612,-150.5138666,0.00017888,2]
[358003797,1744651074622,-285.16785197,0.00017888,2]
[358003798,1744651074633,-435.68171857,0.00017888,2]
[358003799,1744651074648,-279.15042946,0.00017888,2]
[358003800,1744651074659,-156.53128911,0.00017888,2]
[358003801,1744651074674,-435.68171857,0.00017888,2]
[358003802,1744651074685,-407.78699232,0.00017888,2]
[358003803,1744651074694,-27.89472625,0.00017888,2]
[358003804,1744651074706,-435.68171857,0.00017888,2]
[358003805,1744651074716,-435.68171857,0.00017888,2]
[358003806,1744651074727,-100.74183661,0.00017888,2]
[358003807,1744651074737,-334.93988196,0.00017888,2]
[358003808,1744651074748,-171.21447025,0.00017888,2]
[358003809,1744651074758,-264.46724832,0.00017888,2]
[358003810,1744651074769,-235.53275168,0.00017888,2]
[358003811,1744651074779,-200.14896689,0.00017888,2]
[358003812,1744651074864,-299.85103311,0.00017888,2]
[358003813,1744651074874,-135.83068546,0.00017888,2]
[358003814,1744651074885,-435.68171857,0.00017888,2]
[358003815,1744651074904,-435.68171857,0.00017886,2]
[358003816,1744651074915,-64.31828143,0.00017886,2]
[358003817,1744651074924,-371.36343714,0.00017888,2]
[358003818,1744651074951,-262.30415883,0.00017888,2]
[358003819,1744651074960,-66.60584117,0.00017888,2]
[358003820,1744651074971,-435.68171857,0.00017888,2]
[358003821,1744651074986,-435.68171857,0.00017888,2]
[358003822,1744651074997,-267.21072169,0.00017888,2]
[358003823,1744651075006,-151.0,0.00017888,2]
[358003824,1744651075016,-17.47099688,0.00017888,2]
[358003825,1744651075027,-133.52900312,0.00017888,2]
[358003826,1744651075037,-151.0,0.00017888,2]
[358003827,1744651075046,-151.15271545,0.00017888,2]
[358003828,1744651075058,-348.84728455,0.00017888,2]
[358003829,1744651075067,-86.83443402,0.00017888,2]
[358003830,1744651075078,-413.16556598,0.00017888,2]
[358003831,1744651075087,-22.51615259,0.00017888,2]
[358003832,1744651075098,-435.68171857,0.00017888,2]
[358003833,1744651075115,-200.99762461,0.00017886,2]
[358003834,1744651075133,-435.68171857,0.00017886,2]
[358003835,1744651075213,-435.68171857,0.00017886,2]
[358003836,1744651075232,-435.68171857,0.00017886,2]
[358003837,1744651075245,-435.68171857,0.00017886,2]
[358003838,1744651075257,-435.68171857,0.00017886,2]
[358003839,1744651075268,-435.68171857,0.00017886,2]
[358003840,1744651075285,-435.68171857,0.00017886,2]
[358003841,1744651075299,-435.68171857,0.00017886,2]
[358003842,1744651075310,-435.68171857,0.00017886,2]
[358003843,1744651075321,-435.68171857,0.00017886,2]
[358003844,1744651075332,-435.68171857,0.00017886,2]
[358003845,1744651075343,-435.68171857,0.00017886,2]
[358003846,1744651075354,-435.68171857,0.00017886,2]
[358003847,1744651075366,-435.68171857,0.00017886,2]
[358003848,1744651075378,-435.68171857,0.00017886,2]
[358003849,1744651075390,-435.68171857,0.00017886,2]
[358003850,1744651075415,-435.68171857,0.00017886,2]
[358003851,1744651075426,-435.68171857,0.00017886,2]
[358003852,1744651075438,-435.68171857,0.00017886,2]
[358003853,1744651075449,-435.68171857,0.00017886,2]
[358003854,1744651075460,-435.68171857,0.00017886,2]
[358003855,1744651075472,-435.68171857,0.00017886,2]
[358003856,1744651075483,-435.68171857,0.00017886,2]
[358003857,1744651075507,-435.68171857,0.00017886,2]
[358003858,1744651075519,-435.68171857,0.00017886,2]
[358003859,1744651075530,-435.68171857,0.00017886,2]
[358003860,1744651075546,-435.68171857,0.00017886,2]
[358003861,1744651075558,-435.68171857,0.00017886,2]
[358003862,1744651075570,-435.68171857,0.00017886,2]
[358003863,1744651075582,-435.68171857,0.00017886,2]
[358003864,1744651075611,-435.68171857,0.00017886,2]
[358003865,1744651075718,-435.68171857,0.00017886,2]
[358003866,1744651075730,-435.68171857,0.00017886,2]
[358003867,1744651075742,-435.68171857,0.00017886,2]
[358003868,1744651075754,-435.68171857,0.00017886,2]
[358003869,1744651075772,-435.68171857,0.00017886,2]
[358003870,1744651075787,-435.68171857,0.00017886,2]
[358003871,1744651075804,-435.68171857,0.00017886,2]
[358003872,1744651075817,-435.68171857,0.00017886,2]
[358003873,1744651075829,-435.68171857,0.00017886,2]
[358003874,1744651075840,-235.22752282,0.00017886,2]
[358003875,1744651075863,-435.68171857,0.00017886,2]
[358003876,1744651075875,-435.68171857,0.00017886,2]
[358003877,1744651075892,-435.68171857,0.00017886,2]
[358003878,1744651075904,-435.68171857,0.00017886,2]
[358003879,1744651075915,-435.68171857,0.00017886,2]
[358003880,1744651075934,-435.68171857,0.00017886,2]
[358003881,1744651075946,-435.68171857,0.00017886,2]
[358003882,1744651075957,-435.68171857,0.00017886,2]
[358003883,1744651075968,-435.68171857,0.00017886,2]
[358003884,1744651076205,-206.39064264,0.00017886,2]
[358003885,1744651076215,-229.29107593,0.00017886,2]
[358003886,1744651076250,-435.68171857,0.00017886,2]
[358003887,1744651076262,-435.68171857,0.00017886,2]
[358003888,1744651076274,-435.68171857,0.00017886,2]
[358003889,1744651076292,-435.68171857,0.00017886,2]
[358003890,1744651076304,-435.68171857,0.00017886,2]
[358003891,1744651076316,-435.68171857,0.00017886,2]
[358003892,1744651076328,-435.68171857,0.00017886,2]
[358003893,1744651076340,-435.68171857,0.00017886,2]
[358003894,1744651076355,-435.68171857,0.00017886,2]
[358003895,1744651076368,-435.68171857,0.00017886,2]
[358003896,1744651076379,-435.68171857,0.00017886,2]
[358003897,1744651076391,-435.68171857,0.00017886,2]
[358003898,1744651076403,-435.68171857,0.00017886,2]
[358003899,1744651076415,-435.68171857,0.00017886,2]
[358003900,1744651076427,-435.68171857,0.00017886,2]
[358003901,1744651076438,-435.68171857,0.00017886,2]
[358003902,1744651076453,-435.68171857,0.00017886,2]
[358003903,1744651076464,-435.68171857,0.00017886,2]
[358003904,1744651076481,-435.68171857,0.00017886,2]
[358003905,1744651076493,-435.68171857,0.00017886,2]
[358003906,1744651076504,-435.68171857,0.00017886,2]
[358003907,1744651076516,-435.68171857,0.00017886,2]
[358003908,1744651076528,-435.68171857,0.00017886,2]
[358003909,1744651076539,-435.68171857,0.00017886,2]
[358003910,1744651076556,-435.68171857,0.00017886,2]
[358003911,1744651076568,-435.68171857,0.00017886,2]
[358003912,1744651076580,-435.68171857,0.00017886,2]
[358003913,1744651076592,-435.68171857,0.00017886,2]
[358003914,1744651076603,-435.68171857,0.00017886,2]
[358003915,1744651076615,-435.68171857,0.00017886,2]
[358003916,1744651076627,-435.68171857,0.00017886,2]
[358003917,1744651076662,-435.68171857,0.00017886,2]
[358003918,1744651076716,-151.0,0.00017886,2]
[358003919,1744651076731,-151.0,0.00017886,2]
[358003920,1744651076743,-151.0,0.00017886,2]
[358003921,1744651076755,-151.0,0.00017886,2]
[358003922,1744651076766,-435.68171857,0.00017886,2]
[358003923,1744651076778,-435.68171857,0.00017886,2]
[358003924,1744651076789,-420.55,0.00017886,2]
[358003925,1744651076808,-435.68171857,0.00017886,2]
[358003926,1744651076820,-151.0,0.00017886,2]
[358003927,1744651076832,-151.0,0.00017886,2]
[358003928,1744651076843,-435.68171857,0.00017886,2]
[358003929,1744651076855,-435.68171857,0.00017886,2]
[358003930,1744651076877,-435.68171857,0.00017886,2]
[358003931,1744651076893,-435.68171857,0.00017886,2]
[358003932,1744651076905,-435.68171857,0.00017886,2]
[358003933,1744651076917,-151.0,0.00017886,2]
[358003934,1744651076935,-151.0,0.00017886,2]
[358003935,1744651076953,-435.68171857,0.00017886,2]
[358003936,1744651077035,-435.68171857,0.00017886,2]
[358003937,1744651077058,-151.0,0.00017886,2]
[358003938,1744651077070,-151.0,0.00017886,2]
[358003939,1744651077082,-435.68171857,0.00017886,2]
[358003940,1744651077093,-151.0,0.00017886,2]
[358003941,1744651077118,-151.0,0.00017886,2]
[358003942,1744651077129,-435.68171857,0.00017886,2]
[358003943,1744651077141,-359.18330699,0.00017886,2]
[358003944,1744651077151,-76.49841158,0.00017886,2]
[358003945,1744651077171,-435.68171857,0.00017886,2]
[358003946,1744651077185,-435.68171857,0.00017886,2]
[358003947,1744651077201,-435.68171857,0.00017886,2]
[358003948,1744651077214,-435.68171857,0.00017886,2]
[358003949,1744651077255,-435.68171857,0.00017886,2]
[358003950,1744651077274,-435.68171857,0.00017886,2]
[358003951,1744651077303,-435.68171857,0.00017886,2]
[358003952,1744651077332,-435.68171857,0.00017886,2]
[358003953,1744651077344,-435.68171857,0.00017886,2]
[358003954,1744651077356,-435.68171857,0.00017886,2]
[358003955,1744651077368,-435.68171857,0.00017886,2]
[358003956,1744651077386,-435.68171857,0.00017886,2]
[358003957,1744651077398,-435.68171857,0.00017886,2]
[358003958,1744651077412,-435.68171857,0.00017886,2]
[358003959,1744651077423,-435.68171857,0.00017886,2]
[358003960,1744651077434,-435.68171857,0.00017886,2]
[358003961,1744651077445,-435.68171857,0.00017886,2]
[358003962,1744651077457,-435.68171857,0.00017886,2]
[358003963,1744651077474,-435.68171857,0.00017886,2]
[358003964,1744651077485,-435.68171857,0.00017886,2]
[358003965,1744651077497,-435.68171857,0.00017886,2]
[358003966,1744651077512,-435.68171857,0.00017886,2]
[358003967,1744651077524,-435.68171857,0.00017886,2]
[358003968,1744651077536,-154.160517,0.00017886,2]
[358003969,1744651077548,-435.68171857,0.00017886,2]
[358003970,1744651077566,-435.68171857,0.00017886,2]
[358003971,1744651077577,-435.68171857,0.00017886,2]
[358003972,1744651077589,-435.68171857,0.00017886,2]
[358003973,1744651077600,-151.0,0.00017886,2]
[358003974,1744651077664,-151.0,0.00017886,2]
[358003975,1744651077740,-435.68171857,0.00017886,2]
[358003976,1744651077751,-183.46799752,0.00017886,2]
[358003977,1744651077762,-435.68171857,0.00017886,2]
[358003978,1744651077779,-435.68171857,0.00017886,2]
[358003979,1744651077832,-327.87038836,0.00017886,2]
[358003980,1744651077843,-435.68171857,0.00017886,2]
[358003981,1744651077854,-435.68171857,0.00017886,2]
[358003982,1744651077867,-435.68171857,0.00017886,2]
[358003983,1744651077878,-435.68171857,0.00017886,2]
[358003984,1744651077895,-435.68171857,0.00017886,2]
[358003985,1744651077913,-435.68171857,0.00017886,2]
[358003986,1744651077936,-435.68171857,0.00017886,2]
[358003987,1744651077948,-435.68171857,0.00017886,2]
[358003988,1744651077959,-435.68171857,0.00017886,2]
[358003989,1744651077977,-435.68171857,0.00017886,2]
[358003990,1744651078207,-435.68171857,0.00017886,2]
[358003991,1744651078225,-435.68171857,0.00017886,2]
[358003992,1744651078236,-435.68171857,0.00017886,2]
[358003993,1744651078249,-248.01431448,0.00017886,2]
[358003994,1744651078260,-435.68171857,0.00017886,2]
[358003995,1744651078271,-435.68171857,0.00017886,2]
[358003996,1744651078286,-435.68171857,0.00017886,2]
[358003997,1744651078303,-435.68171857,0.00017886,2]
[358003998,1744651078326,-435.68171857,0.00017885,2]
[358003999,1744651078360,-64.31828143,0.00017885,2]
[358004000,1744651078370,-221.96759827,0.00017886,2]
[358004001,1744651078380,-149.39583887,0.00017886,2]
[358004002,1744651078404,-350.60416113,0.00017886,2]
[358004003,1744651078413,-85.07755744,0.00017886,2]
[358004004,1744651078425,-435.68171857,0.00017886,2]
[358004005,1744651078436,-435.68171857,0.00017886,2]
[358004006,1744651078453,-435.68171857,0.00017886,2]
[358004007,1744651078476,-435.68171857,0.00017886,2]
[358004008,1744651078487,-435.68171857,0.00017886,2]
[358004009,1744651078498,-435.68171857,0.00017886,2]
[358004010,1744651078509,-435.68171857,0.00017886,2]
[358004011,1744651078521,-435.68171857,0.00017886,2]
[358004012,1744651078538,-435.68171857,0.00017886,2]
[358004013,1744651078549,-435.68171857,0.00017886,2]
[358004014,1744651078564,-435.68171857,0.00017886,2]
[358004015,1744651078576,-422.82406068,0.00017886,2]
[358004016,1744651078588,-435.68171857,0.00017886,2]
[358004017,1744651078599,-435.68171857,0.00017886,2]
[358004018,1744651078611,-435.68171857,0.00017886,2]
[358004019,1744651078622,-435.68171857,0.00017886,2]
[358004020,1744651078634,-435.68171857,0.00017886,2]
[358004021,1744651078645,-435.68171857,0.00017886,2]
[358004022,1744651078657,-435.68171857,0.00017886,2]
[358004023,1744651078668,-435.68171857,0.00017886,2]
[358004024,1744651078679,-435.68171857,0.00017886,2]
[358004025,1744651078691,-435.68171857,0.00017886,2]
[358004026,1744651078702,-435.68171857,0.00017886,2]
[358004027,1744651078713,-435.68171857,0.00017886,2]
[358004028,1744651078726,-435.68171857,0.00017886,2]
[358004029,1744651078738,-435.68171857,0.00017886,2]
[358004030,1744651078749,-250.3734324,0.00017886,2]
[358004031,1744651078760,-435.68171857,0.00017886,2]
[358004032,1744651078771,-435.68171857,0.00017886,2]
[358004033,1744651078783,-435.68171857,0.00017886,2]
[358004034,1744651078798,-435.68171857,0.00017886,2]
[358004035,1744651078809,-435.68171857,0.00017886,2]
[358004036,1744651078821,-435.68171857,0.00017886,2]
[358004037,1744651078833,-435.68171857,0.00017886,2]
[358004038,1744651078845,-166.0,0.00017886,2]
[358004039,1744651078856,-435.68171857,0.00017886,2]
[358004040,1744651078867,-435.68171857,0.00017886,2]
[358004041,1744651078882,-435.68171857,0.00017886,2]
[358004042,1744651078894,-435.68171857,0.00017886,2]
[358004043,1744651078906,-435.68171857,0.00017886,2]
[358004044,1744651078917,-435.68171857,0.00017886,2]
[358004045,1744651078928,-435.68171857,0.00017886,2]
[358004046,1744651078946,-435.68171857,0.00017885,2]
[358004047,1744651078956,-64.31828143,0.00017885,2]
[358004048,1744651078965,-371.36343714,0.00017886,2]
[358004049,1744651078975,-435.68171857,0.00017886,2]
[358004050,1744651078986,-435.68171857,0.00017886,2]
[358004051,1744651078999,-435.68171857,0.00017886,2]
[358004052,1744651079010,-435.68171857,0.00017886,2]
[358004053,1744651079020,-435.68171857,0.00017886,2]
[358004054,1744651079077,-435.68171857,0.00017886,2]
[358004055,1744651079113,-435.68171857,0.00017886,2]
[358004056,1744651079124,-435.68171857,0.00017886,2]
[358004057,1744651079136,-218.34073955,0.00017886,2]
[358004058,1744651079146,-217.34097902,0.00017886,2]
[358004059,1744651079159,-282.65902098,0.00017886,2]
[358004060,1744651079172,-153.02269759,0.00017886,2]
[358004061,1744651079183,-346.97730241,0.00017886,2]
[358004062,1744651079192,-88.70441616,0.00017886,2]
[358004063,1744651079204,-435.68171857,0.00017886,2]
[358004064,1744651079216,-435.68171857,0.00017886,2]
[358004065,1744651079233,-435.68171857,0.00017885,2]
[358004066,1744651079246,-64.31828143,0.00017885,2]
[358004067,1744651079256,-371.36343714,0.00017886,2]
[358004068,1744651079277,-435.68171857,0.00017886,2]
[358004069,1744651079289,-435.68171857,0.00017886,2]
[358004070,1744651079301,-435.68171857,0.00017886,2]
[358004071,1744651079311,-435.68171857,0.00017886,2]
[358004072,1744651079322,-435.68171857,0.00017886,2]
[358004073,1744651079334,-435.68171857,0.00017886,2]
[358004074,1744651079352,-435.68171857,0.00017886,2]
[358004075,1744651079363,-435.68171857,0.00017886,2]
[358004076,1744651079375,-435.68171857,0.00017886,2]
[358004077,1744651079386,-435.68171857,0.00017886,2]
[358004078,1744651079396,-435.68171857,0.00017886,2]
[358004079,1744651079407,-435.68171857,0.00017886,2]
[358004080,1744651079423,-435.68171857,0.00017886,2]
[358004081,1744651079433,-435.68171857,0.00017886,2]
[358004082,1744651079444,-435.68171857,0.00017886,2]
[358004083,1744651079456,-435.68171857,0.00017886,2]
[358004084,1744651079467,-435.68171857,0.00017886,2]
[358004085,1744651079482,-435.68171857,0.00017886,2]
[358004086,1744651079493,-431.65093852,0.00017886,2]
[358004087,1744651079510,-435.68171857,0.00017886,2]